bitfinex/quotes_BTCUSD_20250102
["timestamp","ask_amount","ask_price","bid_price","bid_amount"]
[1735784218333,0.1,95050.0,95049.0,0.23578632]
[1735784218711,0.001,95051.0,95049.0,0.16221328]
[1735784218910,0.1,95051.0,95050.0,0.09922133]
[1735784219087,0.1,95051.0,95050.0,0.20320765]
[1735784219295,0.1,95051.0,95050.0,0.21263355]
[1735784219490,0.1,95053.0,95051.0,0.083]
[1735784219703,0.1,95053.0,95052.0,0.23578632]
[1735784220024,0.1,95053.0,95052.0,0.27135346]
[1735784220614,0.101,95053.0,95052.0,0.271849]
[1735784220832,0.101,95053.0,95052.0,0.276849]
[1735784221355,0.102,95053.0,95052.0,0.25070564]
[1735784222145,0.101,95053.0,95052.0,0.24570564]
[1735784222303,0.102,95053.0,95052.0,0.25170564]
[1735784225682,0.002,95053.0,95052.0,0.25170564]
[1735784226769,0.1,95073.0,95066.0,0.0461]
[1735784226990,0.1,95073.0,95067.0,0.10398632]
[1735784227179,0.1,95073.0,95067.0,0.11339419]
[1735784227991,0.001,95073.0,95067.0,0.11339419]
[1735784228209,0.101,95073.0,95067.0,0.11339419]
[1735784228414,0.1,95073.0,95067.0,0.11339419]
[1735784229203,0.310366,95073.0,95067.0,0.11339419]
[1735784229622,0.310366,95073.0,95067.0,0.11739419]
[1735784230199,0.311366,95073.0,95067.0,0.12639419]
[1735784230655,0.1,95068.0,95067.0,0.12639419]
[1735784231622,0.1,95068.0,95067.0,0.11339419]
[1735784231823,0.102,95068.0,95067.0,0.12839419]
[1735784236584,0.002,95068.0,95067.0,0.12839419]
[1735784236960,0.002,95068.0,95067.0,0.15081361]
[1735784239113,0.002,95068.0,95067.0,0.12839419]
[1735784240429,0.002,95068.0,95067.0,0.21029419]
[1735784241576,0.002,95068.0,95067.0,0.25679419]
[1735784243033,0.001,95068.0,95067.0,0.40079419]
[1735784243276,0.000171,95073.0,95068.0,0.360375]
[1735784243410,0.000171,95073.0,95072.0,0.10398632]
[1735784243606,0.000171,95073.0,95072.0,0.18718632]
[1735784243852,0.000171,95073.0,95072.0,0.19658889]
[1735784244033,0.000171,95073.0,95072.0,0.24308889]
[1735784244776,0.001171,95073.0,95072.0,0.25538697]
[1735784245351,0.001171,95073.0,95072.0,0.26238697]
[1735784245555,0.001171,95073.0,95072.0,0.25908889]
[1735784246835,0.001171,95073.0,95072.0,0.32902171]
[1735784247586,0.001171,95073.0,95072.0,0.37116271]
[1735784249031,0.001171,95073.0,95072.0,0.30122989]
[1735784250096,0.001171,95073.0,95072.0,0.32422989]
[1735784252905,0.001171,95073.0,95072.0,0.30122989]
[1735784254621,0.001171,95073.0,95072.0,0.17152989]
[1735784255842,0.001171,95073.0,95072.0,0.12938889]
[1735784257352,0.001171,95073.0,95072.0,0.12238889]
[1735784257552,0.001171,95073.0,95072.0,0.12838889]
[1735784257952,0.000171,95073.0,95072.0,0.11938889]
[1735784258138,0.000171,95073.0,95072.0,0.11338889]
[1735784258338,0.001171,95073.0,95072.0,0.12238889]
[1735784258761,0.001171,95073.0,95072.0,0.12838889]
[1735784259171,0.001171,95073.0,95072.0,0.12238889]
[1735784259571,0.000171,95073.0,95072.0,0.11338889]
[1735784259748,0.000171,95073.0,95072.0,0.11298632]
[1735784260096,0.001171,95073.0,95072.0,0.11298632]
[1735784260450,0.101171,95073.0,95072.0,0.11298632]
[1735784260657,0.101171,95073.0,95072.0,0.11898632]
[1735784261063,0.001171,95073.0,95072.0,0.11898632]
[1735784262804,0.101171,95073.0,95072.0,0.11898632]
[1735784263219,0.201171,95073.0,95072.0,0.11898632]
[1735784263670,0.322671,95073.0,95072.0,0.11898632]
[1735784263913,0.322671,95073.0,95072.0,0.015]
[1735784264685,0.322671,95073.0,95072.0,0.009]
[1735784265092,0.322671,95073.0,95072.0,0.012]
[1735784265467,0.222671,95073.0,95072.0,0.012]
[1735784266048,0.221671,95073.0,95072.0,0.003]
[1735784266247,0.322671,95073.0,95072.0,0.01]
[1735784266783,0.222671,95073.0,95072.0,0.01]
[1735784266987,0.322671,95073.0,95072.0,0.01]
[1735784268156,0.222671,95073.0,95072.0,0.01]
[1735784268477,0.322671,95073.0,95072.0,0.11398632]
[1735784269858,0.322671,95073.0,95072.0,0.12539348]
[1735784270713,0.322671,95073.0,95072.0,0.11398632]
[1735784271038,0.322671,95073.0,95060.0,0.12776919]
[1735784271173,0.210366,95072.0,95061.0,0.10398632]
[1735784271370,0.210381,95066.0,95061.0,0.11340055]
[1735784272375,0.210381,95066.0,95061.0,0.11640055]
[1735784272582,0.310381,95066.0,95062.0,0.02441697]
[1735784272779,0.210382,95065.0,95063.0,0.10398632]
[1735784272981,0.210382,95065.0,95063.0,0.11339843]
[1735784274427,0.211382,95065.0,95063.0,0.12239843]
[1735784274600,0.211382,95065.0,95063.0,0.11298632]
[1735784275035,0.211382,95065.0,95063.0,0.13746187]
[1735784275233,0.211382,95065.0,95064.0,0.00941105]
[1735784275457,0.211382,95065.0,95064.0,0.11339737]
[1735784275636,0.210382,95065.0,95064.0,0.11339737]
[1735784275970,0.211382,95065.0,95064.0,0.11339737]
[1735784276412,0.210382,95065.0,95064.0,0.11339737]
[1735784276615,0.211382,95065.0,95064.0,0.12039737]
[1735784277904,0.211382,95065.0,95064.0,0.12339737]
[1735784279201,0.211382,95065.0,95064.0,0.12348267]
[1735784279889,0.211382,95065.0,95064.0,0.11407162]
[1735784280308,0.311382,95065.0,95064.0,0.11407162]
[1735784280566,0.386482,95065.0,95064.0,0.11407162]
[1735784282309,0.486482,95065.0,95064.0,0.11407162]
[1735784282511,0.49244857,95065.0,95064.0,0.0100853]
[1735784282715,0.4928637,95065.0,95064.0,0.0100853]
[1735784283323,0.49576009,95065.0,95064.0,0.0100853]
[1735784289342,0.50072009,95065.0,95064.0,0.0100853]
[1735784291273,0.50089069,95065.0,95064.0,0.0100853]
[1735784291455,0.69909069,95065.0,95064.0,0.0100853]
[1735784294065,0.69909069,95065.0,95064.0,0.0070853]
[1735784294408,0.69809069,95065.0,95064.0,8.53e-05]
[1735784294554,0.71457452,95065.0,95064.0,8.53e-05]
[1735784294762,1.19470169,95065.0,95064.0,8.53e-05]
[1735784294960,1.19470169,95065.0,95064.0,0.0010853]
[1735784296331,1.31173512,95065.0,95064.0,3e-07]
[1735784296531,0.1,95053.0,95052.0,8.53e-05]
[1735784296752,0.82785405,95053.0,95052.0,8.53e-05]
[1735784296997,0.83583505,95053.0,95052.0,8.53e-05]
[1735784297138,0.54976805,95053.0,95052.0,8.53e-05]
[1735784297339,0.65147705,95053.0,95052.0,8.53e-05]
[1735784297986,0.65147705,95053.0,95052.0,0.0020853]
[1735784298642,0.65147705,95053.0,95052.0,0.0030853]
[1735784299839,0.65147705,95053.0,95052.0,8.53e-05]
[1735784300253,0.65347705,95053.0,95052.0,8.53e-05]
[1735784300448,0.65147705,95053.0,95052.0,8.53e-05]
[1735784300923,0.65347705,95053.0,95052.0,8.53e-05]
[1735784301738,0.80347705,95053.0,95052.0,8.53e-05]
[1735784301945,0.93046337,95053.0,95052.0,3e-07]
[1735784302145,0.806739,95039.0,95038.0,4e-07]
[1735784302352,0.91072532,95039.0,95038.0,4e-07]
[1735784302556,0.92105865,95039.0,95038.0,4e-07]
[1735784304112,0.92605865,95039.0,95038.0,4e-07]
[1735784304311,0.92405865,95039.0,95038.0,4e-07]
[1735784304517,0.92105865,95039.0,95038.0,4e-07]
[1735784304997,0.92505865,95039.0,95038.0,4e-07]
[1735784305240,1.16149452,95039.0,95038.0,4e-07]
[1735784305599,1.16016119,95039.0,95038.0,4e-07]
[1735784305798,1.18698508,95039.0,95038.0,4e-07]
[1735784306014,1.13561463,95039.0,95038.0,4e-07]
[1735784306274,1.23561463,95039.0,95038.0,4e-07]
[1735784306420,1.23761463,95039.0,95038.0,4e-07]
[1735784306862,1.23761463,95039.0,95009.0,8.55e-05]
[1735784306863,0.410504,95010.0,95009.0,8.55e-05]
[1735784307220,0.42087768,95010.0,95009.0,8.55e-05]
[1735784308051,0.42087768,95010.0,95009.0,0.0030855]
[1735784308235,0.4209555,95010.0,95009.0,0.0030855]
[1735784308571,0.4209555,95010.0,95009.0,0.0070855]
[1735784308921,0.10007782,95010.0,95009.0,0.0843855]
[1735784309122,7.782e-05,95010.0,95009.0,0.25517976]
[1735784309970,7.782e-05,95010.0,95009.0,0.40217976]
[1735784310164,7.782e-05,95010.0,95009.0,0.38974121]
[1735784310515,0.00207782,95010.0,95009.0,0.39874121]
[1735784310700,0.00207782,95010.0,95009.0,0.39574121]
[1735784310845,0.00107782,95010.0,95009.0,0.38974121]
[1735784311046,0.00207782,95010.0,95009.0,0.39774121]
[1735784311474,0.00307782,95010.0,95009.0,0.40074121]
[1735784312023,0.00107782,95010.0,95009.0,0.39774121]
[1735784312264,0.00207782,95010.0,95009.0,0.39874121]
[1735784312471,0.00107782,95010.0,95009.0,0.39074121]
[1735784312649,0.00207782,95010.0,95009.0,0.39874121]
[1735784315517,0.18665062,95030.0,95010.0,0.210504]
[1735784315722,0.18672875,95030.0,95015.0,0.10398632]
[1735784316218,0.18672875,95030.0,95016.0,0.08316319]
[1735784316441,0.18672875,95030.0,95017.0,0.10398632]
[1735784316864,0.18672875,95030.0,95018.0,0.00945984]
[1735784317091,0.18672875,95030.0,95019.0,0.10398632]
[1735784317322,0.18772875,95030.0,95019.0,0.10398632]
[1735784317510,0.18772875,95030.0,95020.0,0.04922176]
[1735784317678,0.18772875,95030.0,95021.0,0.10398632]
[1735784317870,0.18872875,95030.0,95021.0,0.10398632]
[1735784318072,0.18672875,95030.0,95022.0,0.0094556]
[1735784318268,0.18672875,95030.0,95023.0,0.10398632]
[1735784318497,0.18772875,95030.0,95024.0,0.0153206]
[1735784318672,0.18772875,95030.0,95025.0,0.10398632]
[1735784318869,0.18772875,95030.0,95025.0,0.11343873]
[1735784319115,0.18872875,95030.0,95025.0,0.10398632]
[1735784319384,0.00207813,95030.0,95026.0,0.03883536]
[1735784319681,0.00207813,95030.0,95027.0,0.10398632]
[1735784320022,0.00207813,95030.0,95028.0,0.00944923]
[1735784320220,7.813e-05,95030.0,95029.0,0.10398632]
[1735784320420,7.813e-05,95030.0,95029.0,0.22778632]
[1735784320641,0.00107813,95030.0,95029.0,0.28593088]
[1735784321007,0.00107813,95030.0,95029.0,0.23723449]
[1735784321216,0.00207813,95030.0,95029.0,0.23723449]
[1735784321424,7.813e-05,95030.0,95029.0,0.23723449]
[1735784321847,0.00107813,95030.0,95029.0,0.24523449]
[1735784322062,0.00107813,95030.0,95029.0,0.23723449]
[1735784322464,0.00107813,95030.0,95029.0,0.11743449]
[1735784322671,0.21153713,95030.0,95029.0,0.11743449]
[1735784322865,0.21153713,95030.0,95029.0,0.11343449]
[1735784323041,0.21153713,95030.0,95029.0,0.10398632]
[1735784323276,0.21253713,95030.0,95029.0,0.11098632]
[1735784323657,0.21253713,95030.0,95029.0,0.12208495]
[1735784323848,0.00107813,95030.0,95029.0,0.11508495]
[1735784324044,0.00207813,95030.0,95029.0,0.13753312]
[1735784324247,7.813e-05,95030.0,95029.0,0.12853312]
[1735784324688,0.00107813,95030.0,95029.0,0.13553312]
[1735784325083,0.00107813,95030.0,95029.0,0.12443449]
[1735784325310,0.00107813,95030.0,95029.0,0.12043449]
[1735784326052,0.00107813,95030.0,95029.0,0.12343449]
[1735784326480,7.813e-05,95030.0,95029.0,0.11343449]
[1735784326683,7.813e-05,95030.0,95029.0,0.12143449]
[1735784326883,0.00107813,95030.0,95029.0,0.12543449]
[1735784327092,0.00107813,95030.0,95029.0,0.11743449]
[1735784327295,0.00107813,95030.0,95029.0,0.11343449]
[1735784327492,0.00207813,95030.0,95029.0,0.12243449]
[1735784327917,7.813e-05,95030.0,95029.0,0.11343449]
[1735784328134,0.00107813,95030.0,95029.0,0.36528714]
[1735784328327,0.00107813,95030.0,95029.0,0.44108714]
[1735784328827,0.00107813,95030.0,95029.0,0.44508714]
[1735784329281,0.00107813,95030.0,95029.0,0.44108714]
[1735784329510,7.813e-05,95030.0,95029.0,0.43708714]
[1735784329720,7.813e-05,95030.0,95029.0,0.44608714]
[1735784329924,0.00107813,95030.0,95029.0,0.44608714]
[1735784331686,0.00107813,95030.0,95029.0,0.41369649]
[1735784331872,0.00107813,95030.0,95029.0,0.40869649]
[1735784332237,0.00107813,95030.0,95029.0,0.41269649]
[1735784332647,0.00107813,95030.0,95029.0,0.40869649]
[1735784332853,7.813e-05,95030.0,95029.0,0.39969649]
[1735784333176,0.20467493,95046.0,95029.0,0.70822294]
[1735784333478,0.20467493,95046.0,95035.0,0.10398632]
[1735784333878,0.20467493,95046.0,95036.0,0.00944074]
[1735784334081,0.20467493,95046.0,95037.0,0.10398632]
[1735784334417,0.2071697,95050.0,95037.0,0.10398632]
[1735784334568,0.2071697,95050.0,95038.0,0.04182643]
[1735784334771,0.2071697,95050.0,95039.0,0.10398632]
[1735784334972,0.2071697,95050.0,95040.0,0.210437]
[1735784335213,0.2071697,95050.0,95041.0,0.10398632]
[1735784335554,0.2071697,95050.0,95042.0,0.00943438]
[1735784335750,0.2071697,95050.0,95043.0,0.17795199]
[1735784335997,0.2071697,95050.0,95044.0,0.00943226]
[1735784336196,0.2071697,95050.0,95045.0,0.10398632]
[1735784336426,0.2071697,95050.0,95046.0,0.00943014]
[1735784336669,0.2071697,95050.0,95047.0,0.10398632]
[1735784337068,0.210419,95048.0,95047.0,0.10398632]
[1735784337862,0.210419,95048.0,95047.0,0.11298632]
[1735784338392,0.210419,95048.0,95047.0,0.10398632]
[1735784338590,0.210419,95048.0,95047.0,0.11298632]
[1735784339241,0.210419,95048.0,95047.0,0.11798632]
[1735784345966,0.0001708,95050.0,95047.0,0.11798632]
[1735784346176,0.210417,95049.0,95048.0,0.00070463]
[1735784346357,0.210417,95049.0,95048.0,0.11341434]
[1735784347741,0.210417,95049.0,95048.0,0.12241434]
[1735784348554,0.210417,95049.0,95048.0,0.12741434]
[1735784349778,0.310417,95049.0,95048.0,0.12741434]
[1735784350816,0.210417,95049.0,95048.0,0.12741434]
[1735784351113,0.310417,95049.0,95048.0,0.12741434]
[1735784354331,0.392317,95049.0,95048.0,0.12741434]
[1735784354770,0.392317,95049.0,95048.0,0.11798632]
[1735784356144,0.392317,95049.0,95048.0,0.12479348]
[1735784356468,0.310417,95049.0,95048.0,0.10698632]
[1735784356866,0.310417,95049.0,95048.0,0.10898632]
[1735784357088,0.210417,95049.0,95048.0,0.11198632]
[1735784357294,0.310417,95049.0,95048.0,0.11698632]
[1735784357954,0.210417,95049.0,95048.0,0.11698632]
[1735784358173,0.310417,95049.0,95048.0,0.11698632]
[1735784358376,0.210417,95049.0,95048.0,0.11698632]
[1735784358989,0.0001708,95050.0,95048.0,0.11698632]
[1735784358990,0.0001708,95050.0,95048.0,0.12869348]
[1735784359281,0.0001708,95050.0,95049.0,0.11341328]
[1735784360511,0.0001708,95050.0,95049.0,0.11841328]
[1735784360898,0.0001708,95050.0,95049.0,0.11341328]
[1735784361100,0.0001708,95050.0,95049.0,0.12241328]
[1735784362668,0.0001708,95050.0,95049.0,0.12641328]
[1735784364725,0.0001708,95050.0,95049.0,0.18880874]
[1735784365939,0.0001708,95050.0,95049.0,0.18986064]
[1735784366634,0.0001708,95050.0,95049.0,0.12746518]
[1735784377612,0.0001708,95050.0,95049.0,0.12755048]
[1735784378571,0.0001708,95050.0,95049.0,0.27755048]
[1735784378776,0.0001708,95050.0,95049.0,0.35799858]
[1735784379215,0.0001708,95050.0,95049.0,0.36129747]
[1735784379433,0.0001708,95050.0,95049.0,0.37715674]
[1735784379629,0.0001708,95050.0,95049.0,0.47650569]
[1735784379850,0.0001708,95050.0,95049.0,0.47450569]
[1735784380296,0.0001708,95050.0,95049.0,0.48350569]
[1735784380507,0.0001708,95050.0,95049.0,0.82395182]
[1735784380899,0.0001708,95050.0,95049.0,0.83295182]
[1735784381276,0.0001708,95050.0,95049.0,0.6094789]
[1735784381727,0.0001708,95050.0,95049.0,0.6174789]
[1735784381926,0.0001708,95050.0,95049.0,0.47550569]
[1735784382143,0.0001708,95050.0,95049.0,0.47650569]
[1735784382341,0.0001708,95050.0,95049.0,0.4732068]
[1735784382486,0.0001708,95050.0,95049.0,0.48450569]
[1735784383344,0.0001708,95050.0,95049.0,0.47550569]
[1735784383794,0.0001708,95050.0,95049.0,0.48450569]
[1735784383997,0.0001708,95050.0,95049.0,0.57907231]
[1735784385757,0.0001708,95050.0,95049.0,0.48450569]
[1735784387050,0.0001708,95050.0,95049.0,0.50750569]
[1735784387246,0.0001708,95050.0,95049.0,0.55550569]
[1735784388217,0.0001708,95050.0,95049.0,0.54750569]
[1735784388425,0.0001708,95050.0,95049.0,0.90536187]
[1735784389571,0.0001708,95050.0,95049.0,0.89636187]
[1735784390059,0.0001708,95050.0,95049.0,0.90536187]
[1735784390867,0.0001708,95050.0,95049.0,1.04707558]
[1735784393014,0.0001708,95050.0,95049.0,0.6982194]
[1735784393736,0.0001708,95050.0,95049.0,0.8093194]
[1735784394146,0.0001708,95050.0,95049.0,0.66760569]
[1735784398078,0.0001708,95050.0,95049.0,1.01610678]
[1735784400904,0.0001708,95050.0,95049.0,1.20513761]
[1735784402866,0.0001708,95050.0,95049.0,1.01610678]
[1735784405157,8e-07,95050.0,95049.0,1.55850678]
[1735784405954,8e-07,95050.0,95049.0,1.8425939]
[1735784406099,0.000171,95073.0,95052.0,0.15]
[1735784406309,0.000171,95073.0,95064.0,0.57547032]
[1735784406758,0.0476,95094.0,95073.0,0.15]
[1735784406759,0.1231,95094.0,95073.0,0.15]
[1735784406909,0.0755,95100.0,95099.0,0.210307]
[1735784407108,0.0755,95106.0,95099.0,0.13541565]
[1735784407362,0.0755,95106.0,95105.0,0.10398632]
[1735784407608,0.07599568,95106.0,95105.0,0.10398632]
[1735784407738,0.07599568,95106.0,95105.0,0.11335392]
[1735784409262,0.07599568,95106.0,95105.0,0.11835392]
[1735784409872,0.07599568,95106.0,95105.0,0.12735392]
[1735784411526,0.07616628,95106.0,95105.0,0.12735392]
[1735784412361,0.12606628,95106.0,95105.0,0.12735392]
[1735784412766,0.12606628,95106.0,95105.0,0.11798632]
[1735784413145,0.12606628,95106.0,95105.0,0.12735392]
[1735784414168,0.07616628,95106.0,95105.0,0.12735392]
[1735784414388,0.07616628,95106.0,95105.0,0.20318031]
[1735784415236,0.00066628,95106.0,95105.0,0.20318031]
[1735784416503,0.00066628,95106.0,95105.0,0.19818031]
[1735784416708,0.00066628,95106.0,95105.0,0.18918031]
[1735784417072,0.00066628,95106.0,95105.0,0.20318031]
[1735784417281,0.00066628,95106.0,95105.0,0.19818031]
[1735784417513,0.00066628,95106.0,95105.0,0.24930531]
[1735784417716,0.00066628,95106.0,95105.0,0.25530531]
[1735784417919,0.00066628,95106.0,95105.0,0.17947892]
[1735784421094,0.00066628,95106.0,95105.0,0.17347892]
[1735784421324,0.00066628,95106.0,95105.0,0.16147892]
[1735784421678,0.00066628,95106.0,95105.0,0.17047892]
[1735784422504,0.07576628,95106.0,95105.0,0.17047892]
[1735784422703,0.07576628,95106.0,95105.0,0.16447892]
[1735784422913,0.07576628,95106.0,95105.0,0.20290287]
[1735784423292,0.07576628,95106.0,95105.0,0.21190287]
[1735784423489,0.07576628,95106.0,95105.0,0.19690287]
[1735784423692,0.07576628,95106.0,95105.0,0.20290287]
[1735784423898,0.07576628,95106.0,95105.0,0.21190287]
[1735784426359,0.00066628,95106.0,95105.0,0.21190287]
[1735784426572,0.00066628,95106.0,95105.0,0.17047892]
[1735784427360,0.00066628,95106.0,95105.0,0.16447892]
[1735784427616,0.00066628,95106.0,95105.0,0.17047892]
[1735784428794,0.00066628,95106.0,95105.0,0.16447892]
[1735784429031,0.00066628,95106.0,95105.0,0.17047892]
[1735784429822,0.07576628,95106.0,95105.0,0.17047892]
[1735784432162,0.12236628,95106.0,95105.0,0.12835392]
[1735784432763,0.12236628,95106.0,95105.0,0.11898632]
[1735784433157,0.12236628,95106.0,95105.0,0.12488495]
[1735784433410,0.12236628,95106.0,95105.0,0.13590506]
[1735784433557,0.07576628,95106.0,95105.0,0.13090506]
[1735784433966,0.07576628,95106.0,95105.0,0.13890506]
[1735784434170,0.07576628,95106.0,95105.0,0.12700643]
[1735784455486,0.00066628,95106.0,95105.0,0.12700643]
[1735784455845,0.00066628,95106.0,95105.0,0.30000643]
[1735784456054,0.00066628,95106.0,95105.0,0.37900643]
[1735784456701,0.00066628,95106.0,95105.0,0.37430353]
[1735784456850,0.00066628,95106.0,95105.0,0.48561119]
[1735784457045,0.00066628,95106.0,95105.0,0.84336622]
[1735784457273,0.00066628,95106.0,95105.0,0.83036622]
[1735784457681,0.00066628,95106.0,95105.0,0.83636622]
[1735784458134,0.00066628,95106.0,95105.0,0.83036622]
[1735784458519,0.00066628,95106.0,95105.0,0.83936622]
[1735784458698,0.00066628,95106.0,95105.0,0.84836622]
[1735784460953,0.00066628,95106.0,95105.0,0.65088587]
[1735784461476,0.00066628,95106.0,95105.0,0.83962758]
[1735784461675,0.00066628,95106.0,95105.0,0.86262758]
[1735784462422,0.00066628,95106.0,95105.0,0.41951095]
[1735784462989,0.00066628,95106.0,95105.0,0.41621385]
[1735784463193,0.00066628,95106.0,95105.0,0.52020017]
[1735784464328,0.00066628,95106.0,95105.0,0.52349709]
[1735784465046,0.00066628,95106.0,95105.0,0.54878744]
[1735784465394,0.00066628,95106.0,95105.0,0.99158607]
[1735784466193,0.00066628,95106.0,95105.0,1.0387715]
[1735784467139,0.00066628,95106.0,95105.0,0.80284436]
[1735784467671,0.0001708,95113.0,95112.0,0.383278]
[1735784467899,0.00024374,95113.0,95112.0,0.67445064]
[1735784468146,0.00024374,95113.0,95112.0,0.70458745]
[1735784468605,0.00024374,95113.0,95112.0,0.72985181]
[1735784468845,0.00024374,95113.0,95112.0,0.73685181]
[1735784469054,0.00024374,95113.0,95112.0,1.08528884]
[1735784469373,0.00024374,95113.0,95112.0,1.09428884]
[1735784469596,0.00024374,95113.0,95112.0,1.13878884]
[1735784470012,0.00024374,95113.0,95112.0,1.28021684]
[1735784471139,7.4e-07,95113.0,95112.0,1.24988884]
[1735784471967,7.4e-07,95113.0,95112.0,1.23388884]
[1735784472310,7.4e-07,95113.0,95112.0,1.24288884]
[1735784472522,7.4e-07,95113.0,95112.0,1.23388884]
[1735784472971,7.4e-07,95113.0,95112.0,1.25188884]
[1735784473377,0.0001708,95134.0,95116.0,0.1111]
[1735784473573,0.00024365,95134.0,95133.0,0.31421732]
[1735784474091,0.00024365,95134.0,95133.0,0.3252073]
[1735784474709,0.00024365,95134.0,95133.0,0.3482073]
[1735784475094,0.00024365,95134.0,95133.0,0.3562073]
[1735784475295,0.00024365,95134.0,95133.0,0.45119593]
[1735784476137,0.00024365,95134.0,95133.0,0.43419593]
[1735784476371,0.00024365,95134.0,95133.0,0.44319593]
[1735784476808,0.00024365,95134.0,95133.0,0.43419593]
[1735784476977,0.00024365,95134.0,95133.0,0.44319593]
[1735784477610,0.00024365,95134.0,95133.0,0.45119593]
[1735784477831,0.00024365,95134.0,95133.0,0.3652073]
[1735784477953,0.00024365,95134.0,95133.0,0.3572073]
[1735784478380,0.00024365,95134.0,95133.0,0.3652073]
[1735784478819,0.00024365,95134.0,95133.0,0.3482073]
[1735784479022,0.00024365,95134.0,95133.0,0.3572073]
[1735784479347,0.00024365,95134.0,95133.0,0.3422073]
[1735784479709,0.00024365,95134.0,95133.0,0.3512073]
[1735784479903,0.00024365,95134.0,95133.0,0.3332073]
[1735784480307,0.00024365,95134.0,95133.0,0.3422073]
[1735784480651,0.00024365,95134.0,95133.0,0.3342073]
[1735784480863,0.00024365,95134.0,95133.0,0.41767593]
[1735784481485,0.00024365,95134.0,95133.0,0.40967593]
[1735784481690,0.00024365,95134.0,95133.0,0.41767593]
[1735784481907,0.00024365,95134.0,95133.0,0.45978593]
[1735784482049,0.00024365,95134.0,95133.0,0.46878593]
[1735784482451,0.00024365,95134.0,95133.0,0.49178593]
[1735784483080,0.00024365,95134.0,95133.0,0.64178593]
[1735784483721,0.00024365,95134.0,95133.0,0.7426578]
[1735784483929,0.00024365,95134.0,95133.0,0.74595472]
[1735784484065,0.00024365,95134.0,95133.0,0.75395472]
[1735784484476,0.00024365,95134.0,95133.0,1.40775967]
[1735784484955,0.0001708,95144.0,95143.0,0.233209]
[1735784485173,0.0001708,95144.0,95143.0,0.38153832]
[1735784485346,0.0001708,95144.0,95143.0,0.39251754]
[1735784485573,0.0001708,95144.0,95143.0,0.40828941]
[1735784485765,0.0001708,95144.0,95143.0,0.41158633]
[1735784486134,0.0001708,95144.0,95143.0,0.42058633]
[1735784487166,0.0001708,95144.0,95143.0,0.42858633]
[1735784489401,0.0001708,95144.0,95143.0,0.41958633]
[1735784489779,0.0001708,95144.0,95143.0,0.42858633]
[1735784489993,0.0001708,95144.0,95143.0,0.41958633]
[1735784490503,0.0001708,95144.0,95143.0,0.41158633]
[1735784490860,0.0001708,95144.0,95143.0,0.41958633]
[1735784491446,0.0001708,95144.0,95143.0,0.42058633]
[1735784491662,0.0001708,95144.0,95143.0,0.45385069]
[1735784493633,0.0001708,95144.0,95143.0,0.44585069]
[1735784493952,0.0001708,95144.0,95143.0,0.45385069]
[1735784494388,0.0001708,95144.0,95143.0,0.44585069]
[1735784494604,0.0001708,95144.0,95143.0,0.45385069]
[1735784494950,0.0001708,95144.0,95143.0,0.44485069]
[1735784495151,0.0001708,95144.0,95143.0,0.45385069]
[1735784495896,0.0001708,95144.0,95143.0,0.44485069]
[1735784496138,0.0001708,95144.0,95143.0,0.45385069]
[1735784499570,0.0001708,95144.0,95143.0,0.60385069]
[1735784500935,0.0001708,95145.0,95144.0,0.173]
[1735784501147,0.0001708,95145.0,95144.0,0.38097264]
[1735784501350,0.0001708,95145.0,95144.0,0.39195078]
[1735784501798,0.0803,95160.0,95144.0,1.08978393]
[1735784502034,0.000171,95164.0,95160.0,0.173]
[1735784502241,0.000171,95164.0,95160.0,0.27698632]
[1735784502445,0.000171,95164.0,95160.0,0.50303357]
[1735784502861,0.000171,95164.0,95160.0,0.5440698]
[1735784503080,0.000171,95164.0,95160.0,0.54736672]
[1735784503333,8e-07,95161.0,95160.0,0.59456672]
[1735784503545,8e-07,95161.0,95160.0,0.63906672]
[1735784503954,8e-07,95161.0,95160.0,0.98614574]
[1735784504309,8e-07,95161.0,95160.0,0.99514574]
[1735784504916,8e-07,95161.0,95160.0,1.00414574]
[1735784505115,0.000171,95164.0,95162.0,0.2841]
[1735784505298,0.00031941,95164.0,95163.0,0.70223764]
[1735784505501,0.00031941,95164.0,95163.0,0.71319535]
[1735784505912,0.00031941,95164.0,95163.0,0.75423158]
[1735784506319,0.00031941,95164.0,95163.0,0.7575285]
[1735784506611,0.00031941,95164.0,95163.0,1.29243705]
[1735784508147,0.00031941,95164.0,95163.0,1.07735073]
[1735784508361,0.00031941,95164.0,95163.0,1.08535073]
[1735784509167,0.00031941,95164.0,95163.0,0.91235073]
[1735784509369,0.00031941,95164.0,95163.0,0.90905381]
[1735784509548,0.00031941,95164.0,95163.0,0.91805381]
[1735784509962,0.00031941,95164.0,95163.0,1.04278945]
[1735784510563,0.00031941,95164.0,95163.0,0.5078809]
[1735784510767,0.00031941,95164.0,95163.0,0.49210903]
[1735784511567,0.00031941,95164.0,95163.0,0.34210903]
[1735784511773,0.07761941,95164.0,95163.0,0.13194403]
[1735784511985,0.07761941,95164.0,95163.0,0.11494403]
[1735784512186,0.07761941,95164.0,95163.0,0.12194403]
[1735784512400,0.07761941,95164.0,95163.0,0.13094403]
[1735784512809,0.07761941,95164.0,95163.0,0.12394403]
[1735784513016,0.07761941,95164.0,95163.0,0.13094403]
[1735784513218,0.22661941,95164.0,95163.0,0.12194403]
[1735784513458,0.22661941,95164.0,95163.0,0.11998632]
[1735784513674,0.22661941,95164.0,95163.0,0.10398632]
[1735784513843,0.22661941,95164.0,95163.0,0.10798632]
[1735784514075,0.22661941,95164.0,95163.0,0.11698632]
[1735784515302,0.22661941,95164.0,95163.0,0.10798632]
[1735784515909,0.22661941,95164.0,95163.0,0.10398632]
[1735784516127,0.22661941,95164.0,95163.0,0.10598632]
[1735784516312,0.22661941,95164.0,95163.0,0.10998632]
[1735784516473,0.22661941,95164.0,95163.0,0.10398632]
[1735784516815,0.22661941,95164.0,95163.0,0.10998632]
[1735784518656,0.22661941,95164.0,95163.0,0.10598632]
[1735784518867,0.22661941,95164.0,95163.0,0.11494403]
[1735784519166,0.22661941,95164.0,95163.0,0.10998632]
[1735784519403,0.22661941,95164.0,95163.0,0.12094403]
[1735784527463,0.12661941,95164.0,95163.0,0.12094403]
[1735784527637,0.22661941,95164.0,95163.0,0.12094403]
[1735784528332,0.12661941,95164.0,95163.0,0.12094403]
[1735784528555,0.00031941,95164.0,95163.0,0.17508175]
[1735784528755,0.00031941,95164.0,95163.0,0.32508175]
[1735784529383,0.00031941,95164.0,95163.0,0.31908175]
[1735784529742,0.00031941,95164.0,95163.0,0.33408175]
[1735784529966,0.00031941,95164.0,95163.0,0.32508175]
[1735784530146,0.00031941,95164.0,95163.0,0.34085244]
[1735784530279,0.00031941,95164.0,95163.0,0.34385244]
[1735784530481,0.00031941,95164.0,95163.0,0.35314769]
[1735784531132,0.00031941,95164.0,95163.0,0.37614769]
[1735784531335,0.00031941,95164.0,95163.0,0.74903462]
[1735784532295,0.00031941,95164.0,95163.0,0.74303462]